bitfinex/quotes_SOLUSD_20250125
["timestamp","ask_amount","ask_price","bid_price","bid_amount"]
[1737765861400,20.0,249.22,249.12,1.501]
[1737765862309,20.0,249.21,249.02,1.501]
[1737765862620,20.0,249.27,249.02,1.501]
[1737765863119,23.776884,249.29,249.02,1.501]
[1737765863322,23.776884,249.27,249.02,1.501]
[1737765864002,28.19330088,249.27,249.02,1.501]
[1737765864624,1.0,249.26,249.02,1.501]
[1737765864928,40.22330088,249.27,249.12,0.03]
[1737765866510,43.5318978,249.27,249.12,0.03]
[1737765867026,31.5018978,249.27,249.13,6.3289]
[1737765867211,31.5018978,249.27,249.14,1.501]
[1737765867416,20.0,249.24,249.14,1.501]
[1737765867807,20.0,249.2,249.14,1.501]
[1737765868319,20.0,249.2,249.13,6.3289]
[1737765868830,20.0,249.2,249.12,0.03]
[1737765869204,7.7250138,249.27,249.12,0.03]
[1737765869622,20.0,249.24,249.12,0.03]
[1737765870007,24.41641688,249.24,249.12,0.03]
[1737765872930,4.41641688,249.24,249.12,0.03]
[1737765876410,20.0,249.25,249.12,0.03]
[1737765877232,23.776884,249.24,249.12,0.03]
[1737765879532,23.776884,249.27,249.12,0.03]
[1737765879828,27.9433828,249.27,249.12,0.03]
[1737765880232,20.0,249.24,249.12,0.03]
[1737765881631,20.0,249.22,249.12,0.03]
[1737765882715,20.0,249.18,249.12,0.03]
[1737765884622,35.806884,249.21,249.12,0.03]
[1737765884829,12.03,249.21,249.12,0.03]
[1737765885030,24.05,249.2,249.12,0.03]
[1737765885228,23.776884,249.19,249.12,0.03]
[1737765885823,35.806884,249.21,249.12,0.03]
[1737765886527,35.806884,249.21,249.08,1.6528276]
[1737765887641,35.806884,249.21,249.1,0.03]
[1737765888017,40.22330088,249.21,249.1,0.03]
[1737765888236,20.0,249.14,249.1,0.03]
[1737765889139,4.41641688,249.2,249.1,0.03]
[1737765889330,15.10436444,249.24,249.1,0.03]
[1737765889638,20.0,249.2,249.1,0.03]
[1737765889842,20.0,249.16,249.1,0.03]
[1737765890242,23.776884,249.19,249.01,7.5336]
[1737765890243,20.0,249.12,249.01,7.5336]
[1737765892138,21.60232558,249.12,249.01,7.5336]
[1737765893329,24.776884,249.11,248.95,6.4367]
[1737765893538,11.28018269,249.11,248.95,6.4367]
[1737765893725,2.45452256,249.11,248.96,1.5444]
[1737765894427,7.08038389,249.11,248.96,1.5444]
[1737765894628,28.40274533,249.1,248.96,1.5444]
[1737765894845,3.55070766,249.09,248.96,1.5444]
[1737765895146,23.776884,249.07,248.96,1.5444]
[1737765895330,15.8869369,249.06,248.9,0.2]
[1737765895534,8.48279823,249.06,248.9,0.2]
[1737765895737,12.89204148,249.06,248.9,0.2]
[1737765896046,35.806884,249.05,248.9,0.2]
[1737765896257,12.89204148,249.06,248.9,0.2]
[1737765896258,2.45445895,249.04,248.9,0.2]
[1737765896622,35.806884,249.03,248.9,0.2]
[1737765896931,20.0,249.0,248.9,0.2]
[1737765897452,20.0,248.98,248.9,0.2]
[1737765898160,1.58489914,249.0,248.9,0.2]
[1737765898330,20.0,249.0,248.9,1.7444]
[1737765900545,20.0,249.0,248.9,1.7744]
[1737765900748,11.06256133,249.06,248.95,20.0]
[1737765900749,9.39596133,249.06,248.95,20.0]
[1737765900946,6.09724361,249.21,249.01,23.776884]
[1737765901159,7.68150309,249.21,249.0,6.4367]
[1737765902059,7.68150309,249.21,249.01,23.776884]
[1737765902234,0.063,249.21,249.02,1.40142539]
[1737765902431,0.063,249.21,249.06,23.776884]
[1737765902637,0.063,249.21,249.1,1.0]
[1737765902865,0.063,249.21,249.11,0.40125739]
[1737765903042,0.063,249.21,249.16,23.776884]
[1737765903372,0.063,249.21,249.17,1.0]
[1737765903570,0.063,249.21,249.18,0.40119953]
[1737765904035,0.063,249.24,249.2,23.776884]
[1737765904237,0.063,249.24,249.21,4.8144]
[1737765906056,0.063,249.24,249.09,104.6]
[1737765906365,0.063,249.24,249.1,6.4367]
[1737765906680,0.063,249.24,249.11,23.776884]
[1737765906879,0.063,249.24,249.14,23.776884]
[1737765907047,0.063,249.24,249.16,2.0]
[1737765907247,0.063,249.24,249.17,23.776884]
[1737765907448,0.063,249.24,249.18,2.0]
[1737765907669,0.063,249.24,249.19,0.40111614]
[1737765907873,0.063,249.24,249.17,104.6]
[1737765908452,0.063,249.24,249.18,23.776884]
[1737765908653,0.063,249.24,249.19,0.40114588]
[1737765908964,0.063,249.24,249.18,23.776884]
[1737765909352,0.063,249.24,249.17,104.6]
[1737765911081,0.063,249.24,249.14,23.776884]
[1737765911282,0.063,249.24,249.14,128.376884]
[1737765911466,0.063,249.24,249.15,0.40123089]
[1737765911644,0.063,249.24,249.16,0.40119396]
[1737765911848,0.063,249.24,249.23,2.0]
[1737765912079,0.063,249.33,249.28,1.0]
[1737765912283,0.063,249.33,249.29,24.17787785]
[1737765912573,0.063,249.33,249.31,23.776884]
[1737765912759,0.063,249.33,249.31,24.17784337]
[1737765912954,0.063,249.33,249.31,129.77784337]
[1737765913175,0.063,249.36,249.35,25.776884]
[1737765913359,0.063,249.36,249.35,128.77771565]
[1737765913563,0.063,249.36,249.35,128.376884]
[1737765915157,0.063,249.36,249.35,129.376884]
[1737765915352,0.063,249.36,249.35,24.776884]
[1737765915557,0.063,249.36,249.35,23.776884]
[1737765916179,0.063,249.36,249.35,139.574584]
[1737765916353,0.063,249.49,249.45,25.776884]
[1737765916559,0.063,249.49,249.45,128.376884]
[1737765916760,0.063,249.49,249.45,104.6]
[1737765917674,0.063,249.49,249.39,3.22]
[1737765918060,0.063,249.49,249.41,23.776884]
[1737765918450,0.063,249.49,249.39,107.82]
[1737765919274,0.063,249.49,249.39,3.22]
[1737765919682,0.063,249.49,249.36,104.6]
[1737765920370,0.063,249.49,249.35,6.1873]
[1737765921111,0.063,249.49,249.31,104.6]
[1737765921271,0.063,249.49,249.29,104.6]
[1737765921609,0.063,249.49,249.3,23.776884]
[1737765922186,0.063,249.49,249.28,110.7873]
[1737765922686,0.063,249.49,249.29,23.776884]
[1737765925985,0.063,249.49,249.29,23.806884]
[1737765929098,0.063,249.49,249.3,1.40098168]
[1737765929477,0.063,249.49,249.33,23.776884]
[1737765929782,0.063,249.49,249.37,23.776884]
[1737765929989,0.063,249.49,249.38,0.40082049]
[1737765930189,0.063,249.49,249.37,23.776884]
[1737765931218,0.063,249.49,249.36,104.6]
[1737765931516,0.063,249.49,249.28,110.7873]
[1737765931830,0.063,249.49,249.29,24.20786089]
[1737765932007,0.063,249.49,249.29,0.03]
[1737765932329,0.063,249.49,249.29,24.20785923]
[1737765933488,0.063,249.49,249.29,0.43097523]
[1737765933697,0.063,249.49,249.29,0.03]
[1737765934223,0.063,249.49,249.29,23.806884]
[1737765935484,0.063,249.49,249.29,0.03]
[1737765935727,6.1924,249.44,249.29,0.03]
[1737765936115,29.969284,249.43,249.29,0.03]
[1737765937041,1.611,249.42,249.29,0.03]
[1737765937605,23.776884,249.41,249.29,0.03]
[1737765939772,23.776884,249.35,249.12,104.6]
[1737765940048,23.776884,249.35,249.12,23.776884]
[1737765940534,23.776884,249.35,249.11,1.0]
[1737765941147,1.611,249.36,249.11,1.0]
[1737765941148,25.387884,249.33,249.12,23.776884]
[1737765942724,25.387884,249.33,249.07,105.6]
[1737765942725,25.387884,249.33,249.08,23.776884]
[1737765942943,25.387884,249.33,249.11,23.776884]
[1737765944746,2.88149377,249.33,249.12,1.0]
[1737765944971,2.88149377,249.33,249.14,1.0]
[1737765945145,2.88149377,249.33,249.15,25.1780514]
[1737765945352,2.88149377,249.33,249.18,23.776884]
[1737765945570,1.611,249.33,249.19,0.40110621]
[1737765945755,1.111,249.33,249.19,0.40110621]
[1737765946276,1.111,249.33,249.22,1.0]
[1737765946479,1.111,249.33,249.23,23.776884]
[1737765946780,1.111,249.33,249.24,0.40102812]
[1737765947145,1.111,249.33,249.24,1.40102812]
[1737765947372,1.111,249.33,249.25,23.776884]
[1737765948257,1.111,249.33,249.25,1.0]
[1737765948580,1.111,249.33,249.26,0.40101327]
[1737765949048,1.111,249.33,249.26,24.17789727]
[1737765949449,1.5692,249.39,249.26,0.40101327]
[1737765949852,1.5692,249.39,249.27,25.776884]
[1737765950048,1.5692,249.39,249.28,0.40095144]
[1737765950667,0.063,249.33,249.28,0.40095144]
[1737765950971,0.063,249.33,249.29,23.776884]
[1737765951175,0.063,249.33,249.3,0.40095643]
[1737765952055,0.063,249.33,249.29,23.776884]
[1737765952759,0.063,249.33,249.29,24.17788195]
[1737765955488,0.063,249.33,249.29,0.40099795]
[1737765955785,0.063,249.33,249.28,0.40097899]
[1737765956977,0.063,249.33,249.27,23.776884]
[1737765957186,0.063,249.33,249.23,104.6]
[1737765957475,0.063,249.33,249.18,104.6]
[1737765957768,0.063,249.33,249.19,24.17798254]
[1737765958079,0.063,249.33,249.19,0.40109854]
[1737765958672,0.063,249.33,249.21,20.0]
[1737765960977,0.063,249.33,249.19,0.40109854]
[1737765961171,0.063,249.33,249.19,23.776884]
[1737765961364,0.063,249.33,249.19,24.776884]
[1737765961569,0.063,249.33,249.19,23.776884]
[1737765961775,1.5692,249.32,249.18,104.6]
[1737765962782,6.2617,249.31,249.19,23.776884]
[1737765963171,6.2617,249.31,249.15,105.6]
[1737765963365,6.2617,249.31,249.14,1.0]
[1737765963571,6.2617,249.31,249.07,10.4876]
[1737765963881,6.2617,249.31,249.1,20.0]
[1737765964076,1.5692,249.3,249.1,124.6]
[1737765964291,1.5692,249.3,249.1,104.6]
[1737765965586,1.5692,249.3,249.11,24.1781456]
[1737765965886,7.8309,249.28,249.1,104.6]
[1737765966108,1.5692,249.26,249.05,104.6]
[1737765967083,1.5692,249.24,249.05,104.6]
[1737765967279,25.346084,249.23,249.05,104.6]
[1737765967509,7.8309,249.22,249.05,104.6]
[1737765967707,1.5692,249.21,249.05,104.6]
[1737765968007,6.2617,249.2,249.04,0.03]
[1737765968304,1.5692,249.19,249.04,0.03]
[1737765969384,6.6066,249.18,249.04,0.03]
[1737765969602,1.525,249.17,249.04,0.03]
[1737765970109,1.525,249.15,249.04,0.03]
[1737765971714,1.525,249.15,248.93,105.63]
[1737765971715,1.525,249.08,248.93,0.03]
[1737765971902,8.1316,249.06,248.79,105.6]
[1737765972080,1.525,249.02,248.82,1.606325]
[1737765972403,5.76996811,249.01,248.8,23.776884]
[1737765972605,5.76996811,249.01,248.79,105.6]
[1737765973816,5.76996811,249.01,248.8,23.776884]
[1737765974113,1.525,248.99,248.74,104.6]
[1737765974303,5.2,249.08,248.71,2.0]
[1737765974304,13.90156811,248.98,248.71,104.6]
[1737765974608,23.776884,248.97,248.71,104.6]
[1737765974830,23.776884,248.97,248.72,0.4018759]
[1737765974831,13.90156811,248.96,248.72,0.4018759]
[1737765975120,13.90156811,248.96,248.74,20.0]
[1737765975323,23.776884,248.95,248.72,0.4018759]
[1737765975508,11.32522553,248.94,248.71,104.6]
[1737765975817,11.32522553,248.94,248.7,20.0]
[1737765976009,11.32522553,248.94,248.7,20.40189874]
[1737765976210,23.776884,248.92,248.7,0.40189874]
[1737765976406,8.1316,248.93,248.73,1.0]
[1737765976592,8.1316,248.93,248.74,24.17868547]
[1737765976993,8.1316,248.93,248.74,23.776884]
[1737765977506,23.776884,248.92,248.67,108.82]
[1737765977709,29.54685211,248.92,248.67,107.82]
[1737765977906,29.54685211,248.92,248.68,0.401946]
[1737765978106,29.54685211,248.92,248.68,105.001946]
[1737765978307,29.54685211,248.92,248.69,23.776884]
[1737765978717,5.76996811,248.92,248.71,24.776884]
[1737765978933,5.76996811,248.92,248.71,23.776884]
[1737765979216,5.76996811,248.92,248.7,0.40192379]
[1737765979217,18.93925011,248.92,248.69,104.6]
[1737765979597,18.93925011,248.92,248.7,0.40192399]
[1737765980398,18.93925011,248.92,248.71,2.0]
[1737765980619,18.93925011,248.92,248.72,24.17872243]
[1737765980823,18.93925011,248.92,248.72,23.776884]
[1737765981010,18.93925011,248.92,248.69,104.6]
[1737765981826,18.93925011,248.92,248.7,23.776884]
[1737765982233,18.93925011,248.92,248.67,4.22]
[1737765982234,8.1316,248.91,248.67,104.6]
[1737765982413,8.1316,248.89,248.67,104.6]
[1737765982612,5.76996811,248.88,248.68,0.40195169]
[1737765982929,5.76996811,248.88,248.69,23.776884]
[1737765983114,8.1316,248.89,248.7,0.40190705]
[1737765983517,8.1316,248.89,248.72,23.776884]
[1737765983824,8.1316,248.89,248.69,104.6]
[1737765984013,5.76996811,248.88,248.69,104.6]
[1737765984414,6.6066,248.87,248.6,105.6]
[1737765984631,7.29496811,248.86,248.61,0.40202687]
[1737765984929,6.6066,248.84,248.63,23.776884]
[1737765985238,6.6066,248.84,248.64,0.40197967]
[1737765985445,6.6066,248.84,248.6,112.74437967]
[1737765985620,6.6066,248.84,248.62,1.0]
[1737765985823,6.6066,248.84,248.62,104.40197967]
[1737765986027,6.6066,248.84,248.64,1.0]
[1737765986223,6.6066,248.84,248.65,23.776884]
[1737765986539,1.525,248.83,248.6,108.62197967]
[1737765986724,1.525,248.83,248.61,23.776884]
[1737765987248,1.525,248.83,248.61,110.42427967]
[1737765987744,1.525,248.83,248.62,23.776884]
[1737765988151,1.525,248.83,248.62,128.17886367]
[1737765988520,1.525,248.83,248.65,1.0]
[1737765988834,1.525,248.83,248.66,23.776884]
[1737765989625,1.525,248.83,248.66,133.20036367]
[1737765990135,1.525,248.83,248.66,132.20036367]
[1737765990520,1.525,248.83,248.66,128.17886367]
[1737765991035,1.525,248.83,248.66,104.40197967]
[1737765991334,1.525,248.83,248.61,24.776884]
[1737765991643,1.525,248.83,248.61,6.0222]
[1737765992023,1.525,248.83,248.63,2.0]
[1737765992221,1.525,248.83,248.64,23.776884]
[1737765993345,1.525,248.83,248.63,1.0]
[1737765993346,1.525,248.83,248.63,20.0]
[1737765994045,1.525,248.83,248.6,107.62197967]
[1737765994259,1.525,248.83,248.6,104.40197967]
[1737765994440,1.525,248.83,248.61,23.776884]
[1737765994746,1.525,248.83,248.6,107.62197967]
[1737765995344,1.525,248.83,248.61,23.776884]
[1737765995651,1.525,248.83,248.64,23.776884]
[1737765995852,1.525,248.83,248.66,23.776884]
[1737765996149,1.525,248.83,248.66,128.17886367]
[1737765996442,1.525,248.83,248.66,129.17886367]
[1737765996644,1.525,248.83,248.68,23.776884]
[1737765997437,1.525,248.83,248.69,1.0]
[1737765997641,1.525,248.83,248.7,23.776884]
[1737765997837,1.525,248.83,248.68,23.776884]
[1737765999737,1.525,248.83,248.73,21.0]
[1737765999927,1.525,248.83,248.73,125.40197967]
[1737766000335,1.525,248.83,248.74,23.776884]
[1737766001961,1.525,248.83,248.64,3.22]
[1737766003257,1.525,248.83,248.65,23.776884]
[1737766003630,1.525,248.83,248.64,23.776884]
[1737766004547,1.525,248.83,248.64,24.776884]
[1737766004751,1.525,248.83,248.64,23.776884]
[1737766006467,1.525,248.83,248.68,23.776884]
[1737766008058,1.525,248.83,248.67,5.0213]
[1737766008262,1.525,248.83,248.68,23.776884]
[1737766008969,1.525,248.83,248.64,105.40197967]
[1737766009156,1.525,248.83,248.64,104.40197967]
[1737766009353,1.525,248.83,248.61,104.40197967]
[1737766009660,1.525,248.83,248.62,23.776884]
[1737766010051,1.525,248.83,248.62,128.17886367]
[1737766010553,1.525,248.83,248.66,23.776884]
[1737766011464,1.525,248.83,248.66,133.20026367]
[1737766011665,1.525,248.83,248.7,24.776884]
[1737766011842,1.588,248.83,248.7,130.17886367]
[1737766012249,1.588,248.83,248.7,128.17886367]
[1737766012944,1.588,248.83,248.66,104.40197967]
[1737766013267,1.588,248.83,248.64,3.22]
[1737766013479,1.588,248.83,248.64,107.62197967]
[1737766014549,1.588,248.83,248.65,23.776884]
[1737766014953,1.588,248.83,248.65,128.17886367]
[1737766015270,1.588,248.83,248.67,23.776884]
[1737766015952,1.588,248.83,248.71,23.776884]
[1737766016278,1.588,248.83,248.71,128.17886367]
[1737766017370,1.588,248.83,248.75,23.776884]
[1737766017874,1.588,248.83,248.74,43.776884]
[1737766018380,1.588,248.83,248.74,148.17886367]
[1737766018697,1.588,248.83,248.74,152.19896367]
[1737766018858,1.588,248.83,248.74,128.17886367]
[1737766019052,1.588,248.83,248.69,107.62197967]
[1737766019387,1.588,248.83,248.62,104.40197967]
[1737766019388,6.0533,248.82,248.62,104.40197967]
[1737766019556,7.6473,248.82,248.62,104.40197967]
[1737766019757,7.6473,248.82,248.62,108.42407967]
[1737766019970,7.6473,248.82,248.63,23.776884]
[1737766020188,7.6473,248.82,248.62,108.42407967]
[1737766020369,6.0533,248.82,248.62,104.40197967]
[1737766020558,1.594,248.81,248.62,104.40197967]
[1737766020989,1.594,248.81,248.63,23.776884]
[1737766022762,1.594,248.81,248.65,23.776884]
[1737766022964,1.594,248.81,248.68,43.776884]
[1737766023176,1.594,248.81,248.71,23.776884]
[1737766023486,1.594,248.81,248.73,23.776884]
[1737766023688,1.594,248.81,248.73,128.17886367]
[1737766024156,1.594,248.81,248.75,23.776884]
[1737766024689,1.594,248.81,248.75,128.17886367]
[1737766024891,0.063,248.83,248.75,128.17886367]
[1737766025182,0.063,248.83,248.79,23.776884]
[1737766025483,0.063,248.83,248.82,43.776884]
[1737766025695,0.063,248.83,248.82,148.17886367]
[1737766025866,1.594,248.97,248.83,37.806884]
[1737766026059,1.594,248.97,248.87,23.776884]
[1737766026267,6.0533,249.06,248.92,20.0]
[1737766026477,6.0533,249.06,248.93,23.776884]
[1737766026678,6.0533,249.06,248.93,128.17886367]
[1737766027192,6.0533,249.06,248.93,140.20886367]
[1737766027595,6.0533,249.06,248.95,23.776884]
[1737766028888,6.0533,249.06,248.94,23.776884]
[1737766029071,6.0533,249.06,248.88,104.40197967]
[1737766029275,1.5543,249.05,248.88,104.40197967]
[1737766029485,1.5543,249.05,248.82,1.0]
[1737766029486,1.5543,249.05,248.84,4.0185]
[1737766029689,1.5543,249.05,248.87,20.0]
[1737766029868,1.5543,249.05,248.88,23.776884]
[1737766030188,1.5543,249.05,248.87,20.0]
[1737766030379,1.5543,249.05,248.87,124.40197967]
[1737766030572,1.5543,249.05,248.92,23.776884]
[1737766030894,1.5543,249.05,248.92,128.17886367]
[1737766031394,1.5543,249.05,248.96,23.776884]
[1737766031573,1.5543,249.05,248.98,23.776884]
[1737766031772,1.5543,249.05,248.98,128.17886367]
[1737766032190,1.5543,249.05,248.98,131.37886367]
[1737766032691,0.063,249.08,249.02,23.776884]
[1737766034582,0.063,249.08,249.06,23.776884]
[1737766034796,0.063,249.08,249.07,43.776884]
[1737766034996,0.063,249.08,249.07,44.776884]
[1737766035998,0.063,249.08,249.07,47.791784]
[1737766036398,0.063,249.18,249.11,20.0]
[1737766036587,0.063,249.18,249.12,23.776884]
[1737766036782,0.063,249.18,249.14,23.776884]
[1737766037494,0.063,249.18,249.16,23.776884]
[1737766037693,0.063,249.18,249.16,128.17886367]
[1737766039108,0.063,249.18,249.17,24.776884]
[1737766039282,1.5543,249.35,249.19,1.0]
[1737766039484,1.5543,249.35,249.26,20.0]
[1737766039796,1.5543,249.35,249.27,23.776884]
[1737766040097,1.5543,249.35,249.29,23.776884]
[1737766041017,6.063,249.42,249.33,23.776884]
[1737766041183,1.5543,249.45,249.37,23.776884]
[1737766041388,6.063,249.48,249.37,23.776884]
[1737766041594,0.063,249.49,249.43,23.776884]
[1737766041809,0.063,249.49,249.44,3.2]
[1737766041986,0.063,249.49,249.45,23.776884]
[1737766044611,0.063,249.49,249.45,129.17886367]
[1737766045899,0.063,249.51,249.5,1.0]
[1737766046082,0.063,249.51,249.5,105.40197967]
[1737766046503,0.063,249.51,249.5,129.17886367]
[1737766047117,0.063,249.51,249.5,128.17886367]
[1737766049786,1.6173,249.61,249.55,23.776884]
[1737766050102,1.6173,249.61,249.55,128.17886367]
[1737766050488,0.02342279,249.57,249.55,128.17886367]
[1737766050907,0.02342279,249.57,249.56,27.783884]
[1737766051291,0.063,249.61,249.6,20.0]
[1737766051597,0.063,249.61,249.6,124.40197967]
[1737766051798,0.063,249.61,249.6,148.17886367]
[1737766052416,0.063,249.61,249.6,152.18526367]
[1737766053413,0.063,249.61,249.6,153.18526367]
[1737766053893,1.5771,249.71,249.64,20.0]
[1737766054103,1.5771,249.71,249.66,23.776884]
[1737766055211,1.5771,249.71,249.68,23.776884]
[1737766055591,0.063,249.71,249.68,23.776884]
[1737766056243,0.063,249.71,249.65,7.2055]
[1737766056410,0.063,249.71,249.62,104.40197967]
[1737766057325,0.063,249.71,249.5,11.0196]
[1737766057326,0.063,249.71,249.54,104.40197967]
[1737766057536,1.5141,249.7,249.54,108.40927967]
[1737766057707,1.5141,249.7,249.53,3.2]
[1737766058419,6.6445,249.69,249.53,3.2]
[1737766059517,6.6445,249.69,249.54,23.776884]
[1737766060205,6.6445,249.69,249.53,3.2]
[1737766060616,6.6445,249.69,249.54,23.776884]
[1737766061615,6.6445,249.69,249.58,23.776884]
[1737766062109,6.6445,249.69,249.62,23.776884]
[1737766062318,6.6445,249.69,249.62,128.17886367]
[1737766062724,6.6445,249.69,249.62,132.18486367]
[1737766062922,6.6445,249.69,249.62,144.21486367]
[1737766063129,6.6445,249.69,249.62,132.18486367]
[1737766064009,1.5141,249.7,249.65,20.0]
[1737766064215,1.5141,249.7,249.66,23.776884]
[1737766064720,0.063,249.71,249.66,128.17886367]
[1737766065219,0.063,249.71,249.68,23.776884]
[1737766065404,0.063,249.71,249.7,23.776884]
[1737766065600,0.063,249.71,249.7,128.17886367]
[1737766067208,0.063,249.71,249.69,3.22]
[1737766084037,0.063,249.71,249.69,107.62197967]
[1737766084743,0.063,249.71,249.7,23.776884]
[1737766084933,0.063,249.71,249.7,128.17886367]
[1737766085633,0.0001,249.71,249.7,142.20886367]
[1737766085845,0.0001,249.71,249.7,172.20886367]
[1737766086150,0.063,249.74,249.72,36.806884]
[1737766086734,0.063,249.74,249.73,39.811184]
[1737766086953,0.063,249.74,249.73,147.41306367]
[1737766087862,0.063,249.74,249.73,104.40187967]
[1737766088866,0.063,249.74,249.71,104.40187967]
[1737766090039,0.063,249.74,249.64,104.40187967]
[1737766090363,0.063,249.74,249.56,4.0069]
[1737766090364,0.063,249.74,249.61,104.43187967]
[1737766090533,0.063,249.74,249.62,23.776884]
[1737766091774,0.063,249.74,249.61,104.43187967]
[1737766093060,0.063,249.74,249.61,0.03]
[1737766095371,23.776884,249.72,249.61,0.03]
[1737766096542,8.3276,249.73,249.61,0.03]
[1737766096943,23.776884,249.72,249.61,0.03]
[1737766097874,8.3276,249.73,249.61,0.03]
[1737766098048,23.776884,249.72,249.61,0.03]
[1737766100172,24.776884,249.72,249.61,0.03]
[1737766100878,23.776884,249.72,249.61,0.03]
[1737766101864,24.776884,249.72,249.61,0.03]
[1737766102073,23.776884,249.7,249.61,0.03]
[1737766103078,25.440384,249.68,249.48,104.5]
[1737766103367,23.776884,249.66,249.48,104.5]
[1737766103869,1.6635,249.62,249.48,104.5]
[1737766104177,23.776884,249.61,249.38,3.2]
[1737766104471,23.776884,249.57,249.36,104.53]
[1737766104674,24.776884,249.57,249.36,104.53]
[1737766104852,23.776884,249.55,249.36,104.53]
[1737766105054,24.776884,249.55,249.36,104.53]
[1737766105366,23.776884,249.53,249.36,0.03]
[1737766105949,1.6635,249.54,249.37,23.776884]
[1737766106178,1.6635,249.54,249.37,128.276884]
[1737766106842,23.776884,249.53,249.37,104.5]
[1737766107244,23.776884,249.53,249.36,0.03]
[1737766107878,23.776884,249.49,249.36,0.03]
[1737766109579,1.6635,249.5,249.36,0.03]
[1737766109769,1.6635,249.5,249.36,104.53]
[1737766111047,23.776884,249.48,249.36,0.03]
[1737766111251,23.776884,249.46,249.36,0.03]
[1737766111574,23.776884,249.44,249.32,0.03]
[1737766114053,23.776884,249.38,249.18,104.5]
[1737766114372,23.776884,249.34,249.11,0.03]
[1737766114581,23.776884,249.32,249.11,104.53]
[1737766114944,23.776884,249.34,249.12,23.776884]
[1737766115573,23.776884,249.34,249.11,104.53]
[1737766116961,7.6284,249.29,249.11,104.53]
[1737766117164,23.776884,249.28,249.11,0.03]
[1737766117554,24.776884,249.28,249.11,0.03]
[1737766117772,23.776884,249.28,249.11,0.03]
[1737766117980,7.6284,249.29,249.11,104.53]
[1737766118186,7.6284,249.29,249.12,23.776884]
[1737766118561,7.6284,249.29,249.12,128.276884]
[1737766119686,7.6284,249.29,249.12,140.296884]
[1737766120017,7.6284,249.29,249.14,23.776884]
[1737766120569,7.6284,249.29,249.14,128.276884]
[1737766120996,7.6284,249.29,249.16,23.776884]
[1737766121176,7.6284,249.29,249.16,128.276884]
[1737766123297,7.6284,249.29,249.16,132.290184]
[1737766123499,1.5493,249.29,249.18,23.776884]
[1737766124616,1.5493,249.29,249.19,4.013]
[1737766124784,1.5493,249.29,249.19,104.5]
[1737766130925,1.5493,249.29,249.12,104.5]
[1737766131087,1.5493,249.29,249.19,0.03]
[1737766132952,29.898084,249.28,249.19,0.03]
[1737766133259,29.898084,249.28,249.11,0.03]
[1737766133260,1.5954,249.27,249.11,0.03]
[1737766135674,23.776884,249.29,248.9,16.054355]
[1737766135675,7.7166,249.12,248.9,16.054355]
[1737766135851,7.7166,249.12,248.9,103.0]
[1737766136366,23.776884,249.11,248.9,103.0]
[1737766137848,23.776884,249.11,248.91,23.776884]
[1737766139668,23.776884,249.11,248.94,103.03]